bitfinex/quotes_ETHUSD_20250628
["timestamp","ask_amount","ask_price","bid_price","bid_amount"]
[1751113600415,119.66658668,2425.6,2425.5,12.69931675]
[1751113600911,119.66658668,2425.6,2425.5,4.37931675]
[1751113601080,119.66658668,2425.6,2425.5,12.69831675]
[1751113601998,119.66658668,2425.6,2425.5,4.37931675]
[1751113602202,119.66658668,2425.6,2425.5,12.70331675]
[1751113602687,119.66658668,2425.6,2425.5,11.01331675]
[1751113607919,119.66658668,2425.6,2425.5,12.6117501]
[1751113620441,119.66658668,2425.6,2425.5,11.01331675]
[1751113624905,119.66658668,2425.6,2425.5,4.37931675]
[1751113625109,119.66658668,2425.6,2425.5,10.2226]
[1751113625341,119.66658668,2425.6,2425.5,8.5226]
[1751113629462,119.66658668,2425.6,2425.5,0.2056]
[1751113629749,119.66658668,2425.6,2425.5,6.8316]
[1751113631916,119.66658668,2425.6,2425.5,0.2056]
[1751113632123,124.47161092,2425.6,2425.5,0.2056]
[1751113632356,124.47161092,2425.6,2425.5,6.8316]
[1751113632923,126.94522569,2425.6,2425.5,0.2056]
[1751113633258,136.94522569,2425.6,2425.5,6.8326]
[1751113635268,136.94522569,2425.6,2425.5,0.2056]
[1751113635593,0.7917,2425.3,2425.2,0.2056]
[1751113635773,0.7917,2425.3,2425.2,6.8336]
[1751113636259,3.26562075,2425.3,2425.2,0.2056]
[1751113636425,3.83954602,2425.3,2425.2,6.8346]
[1751113636625,3.83954602,2425.3,2425.2,0.2056]
[1751113636820,3.83954602,2425.3,2425.2,6.8346]
[1751113638265,3.26562075,2425.3,2425.2,6.8346]
[1751113642052,2.47409522,2425.2,2424.6,10.7171]
[1751113642261,2.47409522,2425.2,2424.9,0.2056]
[1751113642262,2.47402276,2425.2,2424.9,0.2056]
[1751113642561,2.47413265,2425.1,2424.9,0.2056]
[1751113643242,12.47407517,2425.2,2424.9,0.2056]
[1751113645776,12.47407517,2425.2,2425.0,1.7]
[1751113646575,2.47407517,2425.2,2425.0,1.7]
[1751113646779,12.47407517,2425.2,2425.0,1.7]
[1751113650348,2.47407517,2425.2,2424.9,0.2056]
[1751113653359,2.47402656,2425.2,2424.9,0.2056]
[1751113655279,2.47402656,2425.2,2425.0,1.7]
[1751113661667,13.26567855,2425.3,2425.0,1.7]
[1751113661870,14.86019276,2425.3,2425.0,1.7]
[1751113666000,12.38621421,2425.3,2425.0,1.7]
[1751113666299,10.7917,2425.3,2425.0,1.7]
[1751113667397,13.26562317,2425.3,2425.0,1.7]
[1751113667600,10.7917,2425.3,2425.0,1.7]
[1751113668500,13.26562827,2425.3,2425.0,1.7]
[1751113669300,12.47392827,2425.3,2425.0,1.7]
[1751113669671,14.07101467,2425.3,2425.0,1.7]
[1751113672904,10.0,2425.5,2425.1,0.7875]
[1751113673206,12.47377358,2425.5,2425.1,0.9931]
[1751113673372,2.47383398,2425.4,2425.1,0.9931]
[1751113673572,12.47377341,2425.5,2425.1,0.9931]
[1751113673773,2.47383387,2425.4,2425.1,0.9931]
[1751113679315,12.47376787,2425.5,2425.1,0.9931]
[1751113681028,2.47382692,2425.4,2425.1,0.9931]
[1751113684238,12.4737717,2425.5,2425.1,0.9931]
[1751113684438,16.48709594,2425.5,2425.1,0.9931]
[1751113687047,2.47382354,2425.4,2425.1,0.9931]
[1751113687617,2.47382354,2425.4,2425.1,2.6931]
[1751113690608,12.47376459,2425.5,2425.1,2.6931]
[1751113694747,2.47382773,2425.4,2425.1,2.6931]
[1751113694942,2.47382773,2425.4,2425.1,0.9931]
[1751113695445,2.47392582,2425.3,2425.1,0.9931]
[1751113700472,2.4738506,2425.4,2425.1,0.9931]
[1751113701245,2.47392841,2425.3,2425.1,0.9931]
[1751113704980,2.47385677,2425.4,2425.1,0.9931]
[1751113706691,2.47392431,2425.3,2425.1,0.9931]
[1751113707567,2.47386251,2425.4,2425.1,0.9931]
[1751113707892,2.47393053,2425.3,2425.1,0.9931]
[1751113709770,2.47402276,2425.2,2425.1,0.9931]
[1751113710491,2.47402276,2425.2,2425.1,0.2056]
[1751113711886,2.47397761,2425.3,2425.1,0.2056]
[1751113712566,2.47402276,2425.2,2425.1,0.2056]
[1751113713198,2.47397971,2425.3,2425.1,0.2056]
[1751113720118,2.47381875,2425.4,2425.1,0.2056]
[1751113720315,2.47392525,2425.3,2425.1,0.2056]
[1751113722506,2.47387581,2425.4,2425.1,0.2056]
[1751113724913,2.4739328,2425.3,2425.1,0.2056]
[1751113731230,2.47389161,2425.4,2425.1,0.2056]
[1751113733344,2.4739231,2425.3,2425.1,0.2056]
[1751113734015,2.47387113,2425.4,2425.1,0.2056]
[1751113744247,2.47392408,2425.3,2425.1,0.2056]
[1751113750650,2.47402276,2425.2,2425.1,0.2056]
[1751113751359,2.47396789,2425.3,2425.1,0.2056]
[1751113756547,2.4738552,2425.4,2425.1,0.2056]
[1751113756748,2.47402276,2425.2,2425.0,6.626]
[1751113756949,2.47402276,2425.2,2425.0,6.8316]
[1751113759361,2.47402276,2425.2,2425.0,0.2056]
[1751113762037,2.47397402,2425.3,2425.0,0.2056]
[1751113765582,2.47397402,2425.3,2425.1,1.7]
[1751113769183,2.67947638,2425.4,2425.1,1.7]
[1751113769369,4.21892424,2425.4,2425.1,1.7]
[1751113770284,2.47392771,2425.3,2425.1,1.7]
[1751113777993,4.21892424,2425.4,2425.1,1.7]
[1751113777994,6.69280506,2425.4,2425.1,1.7]
[1751113779603,2.47392158,2425.3,2425.1,1.7]
[1751113791718,6.69281172,2425.4,2425.1,1.7]
[1751113792032,2.67948748,2425.4,2425.1,1.7]
[1751113792620,2.47392396,2425.3,2425.1,1.7]
[1751113794329,2.67946739,2425.4,2425.1,1.7]
[1751113803753,2.67946739,2425.4,2425.1,2.4755]
[1751113806554,2.47392676,2425.3,2425.1,2.4755]
[1751113807018,2.67947095,2425.4,2425.1,2.4755]
[1751113807652,6.69279519,2425.4,2425.1,2.4755]
[1751113809764,2.67947095,2425.4,2425.1,2.4755]
[1751113818169,2.47392221,2425.3,2425.1,2.4755]
[1751113820872,2.67947416,2425.4,2425.1,2.4755]
[1751113822478,0.2056,2425.4,2425.1,2.4755]
[1751113822973,10.0,2425.5,2425.3,0.2056]
[1751113823169,10.0,2425.5,2425.4,0.7712]
[1751113831281,119.66658668,2425.6,2425.4,2.6793606]
[1751113831446,119.66658668,2425.6,2425.5,0.7993]
[1751113832151,119.66658668,2425.6,2425.5,7.4203]
[1751113833174,119.66658668,2425.6,2425.5,9.89401675]
[1751113845289,119.66658668,2425.6,2425.5,7.4203]
[1751113847389,119.66658668,2425.6,2425.5,9.89401675]
[1751113847589,119.66658668,2425.6,2425.5,11.20288742]
[1751113850881,119.66658668,2425.6,2425.5,11.15288742]
[1751113852600,119.66658668,2425.6,2425.5,12.85288742]
[1751113855467,119.66658668,2425.6,2425.5,13.40288742]
[1751113859014,119.66658668,2425.6,2425.5,18.15288742]
[1751113885042,119.66658668,2425.6,2425.5,19.83288742]
[1751113898966,119.66658668,2425.6,2425.5,19.07858742]
[1751113899170,119.66658668,2425.6,2425.5,17.76971675]
[1751113908180,119.66658668,2425.6,2425.5,9.47371675]
[1751113908358,119.66658668,2425.6,2425.5,17.76871675]
[1751113918197,119.66658668,2425.6,2425.5,9.47371675]
[1751113918375,119.66658668,2425.6,2425.5,17.76871675]
[1751113918672,119.66658668,2425.6,2425.5,19.86505742]
[1751113919398,119.66658668,2425.6,2425.5,17.76871675]
[1751113926716,119.66658668,2425.6,2425.5,17.21871675]
[1751113929827,119.66658668,2425.6,2425.5,12.46871675]
[1751113932209,119.66658668,2425.6,2425.5,4.17371675]
[1751113932516,119.66658668,2425.6,2425.5,12.46771675]
[1751113934028,119.66658668,2425.6,2425.5,4.17371675]
[1751113934237,119.66658668,2425.6,2425.5,12.46871675]
[1751113938935,124.43751092,2425.6,2425.5,10.78771675]
[1751113946246,124.43751092,2425.6,2425.5,8.314]
[1751113946570,124.43751092,2425.6,2425.5,10.78771675]
[1751113956849,120.42418668,2425.6,2425.5,10.78771675]
[1751113968773,120.42418668,2425.6,2425.5,1.7]
[1751113968955,120.42418668,2425.6,2425.5,8.314]
[1751113969156,120.42418668,2425.6,2425.5,1.7]
[1751113969355,120.42418668,2425.6,2425.5,8.314]
[1751113969556,124.43751092,2425.6,2425.5,8.314]
[1751113970281,124.43751092,2425.6,2425.5,10.78771675]
[1751113971190,124.43751092,2425.6,2425.5,4.17371675]
[1751113971489,124.43751092,2425.6,2425.5,10.78771675]
[1751113972770,120.42418668,2425.6,2425.5,10.78771675]
[1751113973389,120.42418668,2425.6,2425.5,4.17371675]
[1751113973568,120.42418668,2425.6,2425.5,10.78771675]
[1751113973991,120.42418668,2425.6,2425.5,4.17371675]
[1751113974290,120.42418668,2425.6,2425.5,10.78771675]
[1751113975791,120.42418668,2425.6,2425.5,4.17371675]
[1751113976180,120.42418668,2425.6,2425.5,10.78771675]
[1751113976897,120.42418668,2425.6,2425.5,4.17371675]
[1751113977097,120.42418668,2425.6,2425.5,10.78771675]
[1751113977699,120.42418668,2425.6,2425.5,4.17371675]
[1751113977998,120.42418668,2425.6,2425.5,10.78771675]
[1751113982394,119.66658668,2425.6,2425.5,10.78771675]
[1751113982578,119.66658668,2425.6,2425.5,11.60351675]
[1751113983484,119.66658668,2425.6,2425.5,13.19970355]
[1751113986773,119.66658668,2425.6,2425.5,13.74970355]
[1751113992009,119.66658668,2425.6,2425.5,18.49970355]
[1751113994182,119.66658668,2425.6,2425.5,28.49970355]
[1751114011037,119.66658668,2425.6,2425.5,48.94348155]
[1751114011231,119.66658668,2425.6,2425.5,48.26648155]
[1751114016746,119.66658668,2425.6,2425.5,45.27095355]
[1751114018249,119.66658668,2425.6,2425.5,34.21147355]
[1751114018421,119.66658668,2425.6,2425.5,32.11647355]
[1751114018626,119.66658668,2425.6,2425.5,32.39762455]
[1751114018949,119.66658668,2425.6,2425.5,31.72062455]
[1751114020345,119.66658668,2425.6,2425.5,28.49970355]
[1751114020735,119.66658668,2425.6,2425.5,31.72072455]
[1751114022368,119.66658668,2425.6,2425.5,28.49970355]
[1751114022537,119.66658668,2425.6,2425.5,31.72072455]
[1751114030374,119.66658668,2425.6,2425.5,41.19406255]
[1751114031046,116.79466601,2425.6,2425.5,41.19406255]
[1751114031372,116.11783096,2425.6,2425.5,41.19406255]
[1751114031537,114.15854155,2425.6,2425.5,41.19406255]
[1751114035375,114.15854155,2425.6,2425.5,28.49970355]
[1751114035550,114.15854155,2425.6,2425.5,44.88181655]
[1751114038280,114.15854155,2425.6,2425.5,41.38181655]
[1751114038475,114.15854155,2425.6,2425.5,36.73738855]
[1751114039381,114.15854155,2425.6,2425.5,33.95638855]
[1751114039581,114.15854155,2425.6,2425.5,32.88867255]
[1751114039777,114.15854155,2425.6,2425.5,28.49970355]
[1751114039980,114.15854155,2425.6,2425.5,27.68390355]
[1751114040654,114.15854155,2425.6,2425.5,29.36090355]
[1751114043896,114.15854155,2425.6,2425.5,21.06990355]
[1751114044076,114.15854155,2425.6,2425.5,27.76071675]
[1751114052709,114.15854155,2425.6,2425.5,37.53483775]
[1751114053228,114.15854155,2425.6,2425.5,38.36463775]
[1751114055977,106.71221856,2425.6,2425.5,38.36463775]
[1751114059383,80.93629842,2425.6,2425.5,58.59051675]
[1751114059717,74.69328554,2425.6,2425.5,59.03577802]
[1751114059882,73.3079004,2425.6,2425.5,59.03577802]
[1751114060217,63.40148719,2425.6,2425.5,59.03577802]
[1751114060524,61.34122876,2425.6,2425.5,59.03577802]
[1751114060697,60.21742876,2425.6,2425.5,59.03577802]
[1751114061104,58.15717033,2425.6,2425.5,59.03577802]
[1751114061298,57.82827033,2425.6,2425.5,29.03577802]
[1751114061500,57.82827033,2425.6,2425.5,59.03577802]
[1751114061710,57.08397033,2425.6,2425.5,59.03577802]
[1751114062435,8.40453112,2425.6,2425.5,63.37677802]
[1751114062580,2.5549053,2425.6,2425.5,63.87677802]
[1751114062935,0.8165,2427.3,2426.8,33.02239162]
[1751114063080,0.8165,2427.3,2426.8,61.21039162]
[1751114063505,0.8165,2427.3,2426.8,32.00669162]
[1751114063902,0.8165,2427.3,2426.8,62.00669162]
[1751114065325,0.8165,2427.3,2426.8,63.70669162]
[1751114065705,0.8165,2427.5,2426.8,63.70669162]
[1751114066025,0.8165,2427.5,2426.8,64.01190728]
[1751114066430,0.8165,2427.5,2427.0,24.79826588]
[1751114066629,0.8165,2427.5,2427.0,31.42526588]
[1751114066797,0.8165,2427.5,2427.0,31.44715145]
[1751114067408,0.8165,2427.5,2427.0,19.12107345]
[1751114067773,0.8165,2427.5,2427.0,30.70519045]
[1751114068518,0.8165,2427.5,2427.0,31.94920045]
[1751114068922,0.8165,2427.5,2427.0,36.69920045]
[1751114069453,0.8165,2427.5,2427.0,35.82720045]
[1751114069651,0.8165,2427.5,2427.0,32.86720045]
[1751114070621,0.8165,2427.5,2427.0,32.76111545]
[1751114072467,0.8165,2427.5,2427.0,32.96671545]
[1751114074765,0.8165,2427.5,2427.0,24.07667345]
[1751114075068,0.8165,2427.5,2427.0,38.98014945]
[1751114075268,0.8165,2427.5,2427.0,32.96671545]
[1751114075837,0.8165,2427.5,2427.0,33.11671545]
[1751114076870,0.8165,2427.5,2427.0,37.63249745]
[1751114077838,0.8165,2427.5,2427.0,42.16149445]
[1751114078869,0.8165,2427.5,2427.0,34.08662745]
[1751114079069,0.8165,2427.5,2427.0,29.45473045]
[1751114079874,0.8165,2427.5,2427.0,29.45483045]
[1751114080844,0.8165,2427.5,2427.0,24.07667345]
[1751114081041,0.8165,2427.5,2427.0,32.95483045]
[1751114081956,0.8165,2427.5,2427.0,24.07667345]
[1751114082172,0.8165,2427.5,2427.0,32.01000245]
[1751114082976,0.8165,2427.5,2427.0,28.50347545]
[1751114083679,0.8165,2427.5,2427.0,25.75767345]
[1751114085578,0.7954,2427.1,2427.0,21.55667345]
[1751114086383,0.7954,2427.1,2427.0,21.55767345]
[1751114089180,0.7954,2427.1,2427.0,12.69967345]
[1751114089344,0.7954,2427.1,2427.0,21.00667345]
[1751114091479,0.7954,2427.1,2427.0,10.80507345]
[1751114100195,0.7954,2427.1,2427.0,4.18107345]
[1751114100412,0.7954,2427.1,2427.0,10.80407345]
[1751114101469,0.7954,2427.1,2427.0,11.00967345]
[1751114102696,0.7954,2427.1,2427.0,2.69967345]
[1751114103000,0.7954,2427.1,2427.0,11.00867345]
[1751114108697,0.002,2427.1,2427.0,11.00867345]
[1751114118080,0.002,2427.1,2427.0,22.38387345]
[1751114119109,0.002,2427.1,2427.0,27.13387345]
[1751114127930,0.002,2427.1,2427.0,26.30867345]
[1751114128296,0.002,2427.1,2427.0,17.44967345]
[1751114128492,0.002,2427.1,2427.0,15.75067345]
[1751114130999,0.002,2427.1,2427.0,11.00067345]
[1751114133437,0.002,2427.1,2427.0,11.00167345]
[1751114134138,0.002,2427.1,2427.0,9.31867345]
[1751114134340,0.002,2427.1,2427.0,11.00167345]
[1751114136837,0.002,2427.1,2427.0,2.69967345]
[1751114137222,0.8013,2427.1,2427.0,11.00267345]
[1751114137553,0.8013,2427.1,2427.0,0.22748557]
[1751114137744,0.8013,2427.1,2427.0,6.84748557]
[1751114140051,0.8013,2427.1,2427.0,6.8256]
[1751114143056,0.8013,2427.1,2427.0,0.2056]
[1751114143249,0.8013,2427.1,2427.0,6.8256]
[1751114149265,0.8013,2427.1,2427.0,6.8246]
[1751114152586,0.8013,2427.1,2427.0,0.2056]
[1751114152587,1.12861948,2427.1,2427.0,0.2056]
[1751114152764,0.8013,2427.1,2427.0,0.2056]
[1751114153072,0.8013,2427.1,2427.0,6.8236]
[1751114154564,0.8013,2427.1,2427.0,0.2056]
[1751114154771,0.8013,2427.1,2427.0,6.8236]
[1751114155769,0.8013,2427.1,2427.0,0.2056]
[1751114155967,1.12862957,2427.1,2426.9,0.2056]
[1751114156173,1.12862957,2427.1,2427.0,6.619]
[1751114157976,1.12862957,2427.1,2426.9,0.2056]
[1751114158182,1.12862957,2427.1,2427.0,6.619]
[1751114161675,0.002,2427.1,2427.0,9.09118788]
[1751114161877,0.002,2427.1,2427.0,9.29678788]
[1751114166286,0.002,2427.1,2427.0,6.8246]
[1751114166491,0.002,2427.1,2427.0,0.2056]
[1751114166694,0.8075,2427.1,2427.0,6.8246]
[1751114171812,0.002,2427.1,2427.0,6.8246]
[1751114201322,0.002,2427.1,2427.0,9.29678788]
[1751114201753,0.002,2427.1,2427.0,6.8246]
[1751114220567,0.002,2427.1,2427.0,9.29678788]
[1751114220935,0.002,2427.1,2427.0,6.8246]
[1751114229679,0.002,2427.1,2427.0,10.09018788]
[1751114236278,0.002,2427.1,2427.0,15.39018788]
[1751114236447,0.002,2427.1,2427.0,27.06218788]
[1751114240775,0.002,2427.1,2427.0,18.77118788]
[1751114240952,0.002,2427.1,2427.0,27.07918788]
[1751114244377,0.002,2427.1,2427.0,39.29156788]
[1751114244572,0.002,2427.1,2427.0,36.67536688]
[1751114245964,0.002,2427.1,2427.0,27.07918788]
[1751114246163,0.002,2427.1,2427.0,42.23053488]
[1751114246775,0.002,2427.1,2427.0,38.73053488]
[1751114249192,0.002,2427.1,2427.0,48.61553488]
[1751114250576,0.002,2427.1,2427.0,46.56633488]
[1751114251077,0.002,2427.1,2427.0,36.96418788]
[1751114251793,0.002,2427.1,2427.0,39.55115588]
[1751114254091,0.002,2427.1,2427.0,36.96418788]
[1751114256889,0.002,2427.1,2427.0,40.22815588]
[1751114258090,0.002,2427.1,2427.0,39.75067488]
[1751114258905,0.002,2427.1,2427.0,49.31928088]
[1751114259061,0.002,2427.1,2427.0,44.82925088]
[1751114260064,0.002,2427.1,2427.0,44.43435088]
[1751114261098,0.002,2427.1,2427.0,32.21418788]
[1751114261297,0.002,2427.1,2427.0,44.62935088]
[1751114262197,0.002,2427.1,2427.0,45.00011788]
[1751114263190,0.002,2427.1,2427.0,32.21418788]
[1751114263490,0.002,2427.1,2427.0,43.85201788]
[1751114263692,0.002,2427.1,2427.0,38.96022088]
[1751114264279,0.002,2427.1,2427.0,32.21418788]
[1751114264473,0.002,2427.1,2427.0,39.64132888]
[1751114265512,0.002,2427.1,2427.0,39.58256188]
[1751114266610,0.002,2427.1,2427.0,43.00255988]
[1751114267311,0.002,2427.1,2427.0,37.68756188]
[1751114267690,0.002,2427.1,2427.0,40.66856188]
[1751114268799,0.002,2427.1,2427.0,37.86566188]
[1751114269104,0.002,2427.1,2427.0,37.66417188]
[1751114270693,0.002,2427.1,2427.0,37.21056188]
[1751114272713,0.002,2427.1,2427.0,39.98256188]
[1751114272908,0.002,2427.1,2427.0,37.41056188]
[1751114273212,0.002,2427.1,2427.0,42.16056188]
[1751114273883,0.002,2427.1,2427.0,52.64133988]
[1751114274213,0.002,2427.1,2427.0,44.93256188]
[1751114274918,0.002,2427.1,2427.0,36.96418788]
[1751114275093,0.002,2427.1,2427.0,45.98084088]
[1751114277225,0.002,2427.1,2427.0,36.96418788]
[1751114277532,0.002,2427.1,2427.0,36.96118788]
[1751114279386,0.002,2427.1,2427.0,28.65618788]
[1751114279592,0.002,2427.1,2427.0,36.16178788]
[1751114280388,0.002,2427.1,2427.0,36.94688788]
[1751114285433,0.002,2427.1,2427.0,45.90949288]
[1751114286433,0.002,2427.1,2427.0,53.50760488]
[1751114286629,0.002,2427.1,2427.0,58.00680488]
[1751114287485,0.002,2427.1,2427.0,36.94688788]
[1751114287704,0.002,2427.1,2427.0,59.03952888]
[1751114288205,0.002,2427.1,2427.0,41.72338788]
[1751114288633,0.002,2427.1,2427.0,41.72348788]
[1751114289735,0.002,2427.1,2427.0,47.70095088]
[1751114290521,0.002,2427.1,2427.0,42.82554388]
[1751114291740,0.002,2427.1,2427.0,36.94688788]
[1751114291945,0.002,2427.1,2427.0,43.99876088]
[1751114292852,0.002,2427.1,2427.0,50.86753188]
[1751114293523,0.002,2427.1,2427.0,46.20483788]
[1751114294041,0.002,2427.1,2427.0,46.96237188]
[1751114295016,0.002,2427.1,2427.0,48.03036888]
[1751114296045,0.002,2427.1,2427.0,36.94688788]
[1751114296216,0.002,2427.1,2427.0,48.03036888]
[1751114297246,0.002,2427.1,2427.0,36.94688788]
[1751114297415,0.002,2427.1,2427.0,48.03036888]
[1751114298244,0.002,2427.1,2427.0,28.64788788]
[1751114298449,0.002,2427.1,2427.0,48.06544588]
[1751114299449,0.002,2427.1,2427.0,48.07544588]
[1751114299950,0.002,2427.1,2427.0,36.94488788]
[1751114300247,0.002,2427.1,2427.0,48.07544588]
[1751114301557,0.002,2427.1,2427.0,52.10233788]
[1751114302348,0.002,2427.1,2427.0,48.63733788]
[1751114304959,0.002,2427.1,2427.0,50.27553588]
[1751114305961,0.002,2427.1,2427.0,50.27533188]
[1751114307034,0.002,2427.1,2427.0,51.49128288]
[1751114311161,0.002,2427.1,2427.0,36.94488788]
[1751114311481,0.002,2427.1,2427.0,51.50128288]
[1751114312366,0.002,2427.1,2427.0,36.94488788]
[1751114312665,0.002,2427.1,2427.0,51.50128288]
[1751114313463,0.002,2427.1,2427.0,36.94488788]
[1751114313767,0.002,2427.1,2427.0,54.96628288]
[1751114314365,0.002,2427.1,2427.0,51.50128288]
[1751114314669,0.002,2427.1,2427.0,54.96628288]
[1751114314880,0.002,2427.1,2427.0,51.50128288]
[1751114316472,0.002,2427.1,2427.0,36.94488788]
[1751114316764,0.002,2427.1,2427.0,51.50128288]
[1751114317968,0.002,2427.1,2427.0,36.94488788]
[1751114318271,0.002,2427.1,2427.0,51.45128288]
[1751114321872,0.002,2427.1,2427.0,50.88528288]
[1751114322667,0.002,2427.1,2427.0,36.89488788]
[1751114322877,0.002,2427.1,2427.0,50.88528288]
[1751114323372,0.002,2427.1,2427.0,36.89488788]
[1751114323674,0.002,2427.1,2427.0,50.88528288]
[1751114324273,0.002,2427.1,2427.0,49.63778588]
[1751114325173,0.002,2427.1,2427.0,51.47354088]
[1751114326079,0.002,2427.1,2427.0,64.83713188]
[1751114326255,0.002,2427.1,2427.0,64.58779188]
[1751114327050,0.002,2427.1,2427.0,64.62305788]
[1751114327779,0.002,2427.1,2427.0,63.82530388]
[1751114328145,0.002,2427.1,2427.0,66.89488788]
[1751114328348,0.002,2427.1,2427.0,65.22037588]
[1751114328961,0.002,2427.6,2427.5,3.02167868]
[1751114329164,0.002,2427.6,2427.5,21.31367868]
[1751114329362,0.002,2427.6,2427.5,21.51927868]
[1751114331080,0.002,2427.6,2427.5,23.21927868]
[1751114359789,0.002,2427.6,2427.5,23.21727868]
[1751114360199,0.002,2427.6,2427.5,14.92727868]
[1751114360389,0.002,2427.6,2427.5,23.21727868]
[1751114362113,0.002,2427.6,2427.5,53.97707868]
[1751114362578,0.002,2427.6,2427.5,48.30219768]
[1751114363383,0.002,2427.6,2427.5,54.00229741]
[1751114363589,0.002,2427.6,2427.5,59.67717841]
[1751114364578,0.002,2427.6,2427.5,29.67717841]
[1751114364779,0.002,2427.6,2427.5,59.67717841]
[1751114365112,0.002,2427.6,2427.5,58.53383441]
[1751114365314,0.002,2427.6,2427.5,57.44240041]
[1751114365682,0.002,2427.6,2427.5,59.67717841]
[1751114366402,0.002,2427.6,2427.5,57.11262041]
[1751114366791,0.002,2427.6,2427.5,52.13061241]
[1751114367190,0.002,2427.6,2427.5,51.14305141]
[1751114367879,0.002,2427.6,2427.5,57.44135641]
[1751114368079,0.002,2427.6,2427.5,56.45379541]
[1751114368681,0.002,2427.6,2427.5,29.67717841]
[1751114369214,0.002,2427.6,2427.5,59.67717841]
[1751114369882,0.002,2427.6,2427.5,29.67717841]
[1751114370082,0.002,2427.6,2427.5,59.67717841]
[1751114370501,0.002,2427.6,2427.5,45.63517941]
[1751114371019,0.002,2427.6,2427.5,43.72350641]
[1751114371320,0.002,2427.6,2427.5,42.73594541]
[1751114371989,0.002,2427.6,2427.5,48.13499541]
[1751114372190,0.002,2427.6,2427.5,47.14743441]
[1751114373020,0.002,2427.6,2427.5,48.32999541]
[1751114373222,0.002,2427.6,2427.5,47.34243441]
[1751114374032,0.002,2427.6,2427.5,29.67717841]
[1751114374230,0.002,2427.6,2427.5,48.13499541]
[1751114375017,0.002,2427.6,2427.5,29.67717841]
[1751114375223,0.002,2427.6,2427.5,48.99609741]
[1751114376121,0.002,2427.6,2427.5,52.49609741]
[1751114376322,0.002,2427.6,2427.5,50.77908541]
[1751114377145,0.002,2427.6,2427.5,59.67717841]
[1751114378943,0.002,2427.6,2427.5,56.14093341]
[1751114379242,0.002,2427.6,2427.5,59.59093141]
[1751114379447,0.002,2427.6,2427.5,49.28214741]
[1751114379835,0.002,2427.6,2427.5,46.37563741]
[1751114380347,0.002,2427.6,2427.5,51.95387441]
[1751114381346,0.002,2427.6,2427.5,29.67717841]
[1751114381568,0.002,2427.6,2427.5,51.88555741]
[1751114382320,0.002,2427.6,2427.5,29.67717841]
[1751114382521,0.002,2427.6,2427.5,59.67717841]
[1751114383654,0.002,2427.6,2427.5,58.04606741]
[1751114384652,0.002,2427.6,2427.5,58.54606741]
[1751114385526,0.002,2427.6,2427.5,59.67717841]
[1751114386565,0.002,2427.6,2427.5,29.67717841]
[1751114386856,2.57,2427.8,2427.7,3.02147505]
[1751114387026,2.57,2427.8,2427.7,55.33257478]
[1751114387228,2.57,2427.8,2427.7,55.53817478]
[1751114388148,2.572,2427.9,2427.8,13.02137325]
[1751114388353,2.572,2427.9,2427.8,19.63137325]
[1751114393059,2.572,2427.9,2427.8,21.33137325]
[1751114399760,2.572,2427.9,2427.8,31.21237325]
[1751114402960,2.572,2427.9,2427.8,36.91247298]
[1751114404563,2.572,2427.9,2427.8,38.59147298]
[1751114407875,2.572,2427.9,2427.8,31.98147298]
[1751114408089,2.572,2427.9,2427.8,38.59047298]
[1751114412875,2.572,2427.9,2427.8,36.91147298]
[1751114413053,2.572,2427.9,2427.8,38.59047298]
[1751114417074,3.5884,2427.9,2427.8,4.17137325]
[1751114417277,3.3308,2427.9,2427.8,4.17137325]
[1751114417579,9.03089973,2427.9,2427.8,1.7]
[1751114417770,9.03089973,2427.9,2427.8,8.377]
[1751114418151,9.03089973,2427.9,2427.8,8.378]
[1751114418362,10.18150672,2427.9,2427.8,8.378]
[1751114420547,4.48140699,2427.9,2427.8,8.378]
[1751114424656,6.95267845,2427.9,2427.8,8.378]
[1751114424857,6.95267845,2427.9,2427.8,8.375]
[1751114427266,6.95267845,2427.9,2427.8,8.5806]
[1751114431493,6.95267845,2427.9,2427.8,1.9056]
[1751114431700,6.95267845,2427.9,2427.8,8.5766]
[1751114431879,6.95267845,2427.9,2427.8,8.371]
[1751114442806,12.65454906,2427.9,2427.8,8.371]
[1751114455026,12.65454906,2427.9,2427.8,1.7]
[1751114463834,10.1832776,2427.9,2427.8,1.7]
[1751114472544,22.65454906,2427.9,2427.8,1.7]
[1751114472841,22.65454906,2427.9,2427.6,0.2056]
[1751114472842,2.47148831,2427.7,2427.4,0.2056]
[1751114473144,5.70187061,2427.5,2427.4,0.2056]
[1751114474034,8.27187061,2427.5,2427.4,0.2056]
[1751114477940,8.27187061,2427.5,2427.4,1.9056]
[1751114488538,8.27187061,2427.5,2427.4,5.1604805]
[1751114488847,2.57,2427.5,2427.4,5.1604805]
[1751114490547,2.57,2427.5,2427.4,2.6887]
[1751114491852,2.57,2427.6,2427.4,2.6887]
[1751114497558,2.57,2427.6,2427.4,5.16048015]
[1751114497851,2.57,2427.6,2427.4,2.6887]
[1751114498842,2.57,2427.6,2427.4,1.9056]
[1751114499148,4.89766969,2427.6,2427.4,1.9056]
[1751114508660,5.70187061,2427.5,2427.4,1.9056]
[1751114509565,8.27187061,2427.5,2427.4,1.9056]
[1751114509728,8.27187061,2427.5,2427.4,8.5386]
[1751114512862,8.27187061,2427.5,2427.4,1.9056]
[1751114513056,9.5789774,2427.5,2427.4,8.5396]
[1751114515162,9.5789774,2427.5,2427.4,1.9056]
[1751114515365,9.5789774,2427.5,2427.4,8.5386]
[1751114517244,8.27187061,2427.5,2427.4,8.5386]
[1751114519785,8.27187061,2427.5,2427.4,1.9056]
[1751114519979,11.49904929,2427.5,2427.4,8.331]
[1751114520548,11.49904929,2427.5,2427.4,1.7]
[1751114524642,5.79717868,2427.5,2427.4,1.7]
[1751114524842,7.44756908,2427.5,2427.4,1.7]
[1751114534360,4.2203904,2427.5,2427.4,1.7]
[1751114542000,4.2203904,2427.5,2427.4,1.65]
[1751114546178,4.2203904,2427.5,2427.4,1.55]
[1751114547515,4.2203904,2427.5,2427.3,6.8366]